fUSD/lending_fUSD_20251228
["ID","MTS","AMOUNT","RATE_DAILY","PERIOD"]
[399941710,1766910639724,-200.0,0.00015694,2]
[399941711,1766910639734,-836.26,0.00015694,2]
[399941712,1766910639745,-150.0,0.00015712,2]
[399941713,1766910639758,-150.0,0.00015712,2]
[399941714,1766910639770,-1000.0,0.0001583,2]
[399941715,1766910639781,-346.25856628,0.00015831,2]
[399941716,1766910639791,-150.0,0.00015854,2]
[399941717,1766910639801,-150.0,0.00015854,2]
[399941718,1766910639811,-500.0,0.00015863,2]
[399941719,1766910639821,-500.0,0.00015874,2]
[399941720,1766910639833,-816.0,0.0001589,2]
[399941721,1766910639842,-202.91839635,0.000159,2]
[399941722,1766910639852,-500.0,0.00015921,2]
[399941723,1766910639861,-150.0,0.00015967,2]
[399941724,1766910639872,-150.0,0.00015967,2]
[399941725,1766910639882,-836.26,0.00015968,2]
[399941726,1766910639892,-150.0,0.00015995,2]
[399941727,1766910639902,-166955.77056216,0.00016,2]
[399941728,1766910639912,-632.21693724,0.00016,2]
[399941729,1766910639922,-1389232.24338038,0.00016,4]
[399941730,1766910639932,-28664.0,0.00016,2]
[399941731,1766910639941,-433.0,0.00016024,2]
[399941732,1766910639951,-421.98541227,0.00016068,2]
[399941733,1766910639961,-1079.51075165,0.00016068,2]
[399941734,1766910639970,-150.0,0.00016137,2]
[399941735,1766910639979,-150.0,0.00016137,2]
[399941736,1766910639988,-500.0,0.00016148,2]
[399941737,1766910639997,-346.25856628,0.00016187,2]
[399941738,1766910640007,-836.26,0.00016242,2]
[399941739,1766910640016,-150.0,0.00016279,2]
[399941740,1766910640026,-150.0,0.00016307,2]
[399941741,1766910640036,-150.0,0.00016307,2]
[399941742,1766910640045,-150.0,0.0001642,2]
[399941743,1766910640054,-150.0,0.0001642,2]
[399941744,1766910640063,-500.0,0.00016422,2]
[399941745,1766910640072,-6425.88,0.00016438,2]
[399941746,1766910640081,-836.26,0.00016516,2]
[399941747,1766910640090,-346.25856628,0.00016544,2]
[399941748,1766910640099,-260.0,0.00016558,2]
[399941749,1766910640107,-150.0,0.00016562,2]
[399941750,1766910640116,-150.0,0.00016562,2]
[399941751,1766910640125,-212.0,0.00016586,2]
[399941752,1766910640134,-150.0,0.00016647,2]
[399941753,1766910640143,-150.0,0.00016647,2]
[399941754,1766910640152,-5527.0,0.000167,3]
[399941755,1766910640161,-150.0,0.00016703,2]
[399941756,1766910640170,-212.0,0.00016707,2]
[399941757,1766910640180,-212.0,0.00016726,2]
[399941758,1766910640190,-214.0,0.00016734,2]
[399941759,1766910640199,-836.26,0.0001679,2]
[399941760,1766910640209,-169.60595422,0.00016822,2]
[399941761,1766910640218,-150.0,0.00016845,2]
[399941762,1766910640229,-169.60595422,0.00016861,2]
[399941763,1766910640238,-212.0,0.00016885,2]
[399941764,1766910640248,-25000.0,0.000169,3]
[399941765,1766910640257,-396.10010332,0.000169,2]
[399941766,1766910640267,-169.60595422,0.000169,2]
[399941767,1766910640276,-346.25856628,0.000169,2]
[399941768,1766910640285,-156.81485742,0.000169,2]
[399941769,1766910640294,-1962.36427914,0.000169,2]
[399941770,1766910640303,-1871.35742932,0.000169,2]
[399941771,1766910640313,-85856.99,0.00016922,2]
[399941773,1766910640322,-499.99,0.00016922,2]
[399941775,1766910640331,-1532.02,0.00016922,2]
[399941777,1766910640340,-735.67,0.00016922,2]
[399941779,1766910640349,-4999.99,0.00016922,2]
[399941781,1766910640358,-150.99,0.00016922,2]
[399941783,1766910640367,-299.99,0.00016922,4]
[399941785,1766910640377,-999.99,0.00016922,2]
[399941787,1766910640386,-425.4,0.00016922,2]
[399941788,1766910640397,-9226.16,0.00016922,2]
[399941789,1766910640406,-150.99,0.00016922,2]
[399941790,1766910640417,-9859.89,0.00016922,2]
[399941791,1766910640426,-9999.99,0.00016922,2]
[399941792,1766910640435,-1195.59,0.00016922,2]
[399941793,1766910640444,-1206.78,0.00016922,2]
[399941794,1766910640453,-168.45,0.00016922,2]
[399941795,1766910640462,-779.5056466,0.0001695,2]
[399941796,1766910640471,-73282.9105803,0.00016956,2]
[399941797,1766910640480,-3327.8195564,0.00016956,2]
[399941798,1766910640489,-424.20807152,0.00016973,2]
[399941799,1766910640499,-481.0497289,0.00016973,2]
[399941800,1766910640510,-500.0,0.00016973,2]
[399941801,1766910640520,-500.0,0.00016973,2]
[399941802,1766910640531,-500.0,0.00016973,2]
[399941803,1766910640540,-500.0,0.00016973,2]
[399941804,1766910640550,-500.0,0.00016973,2]
[399941805,1766910640561,-150.0,0.00016986,2]
[399941806,1766910640572,-150.0,0.00016986,2]
[399941807,1766910640582,-150.0,0.00016986,2]
[399941808,1766910640591,-150.0,0.00016986,2]
[399941809,1766910640600,-150.0,0.00016986,2]
[399941810,1766910640610,-150.0,0.00016986,2]
[399941811,1766910640621,-150.0,0.00016986,2]
[399941812,1766910640632,-150.0,0.00016986,2]
[399941813,1766910640643,-150.0,0.00016986,2]
[399941814,1766910640652,-500.0,0.00016999,2]
[399941815,1766910640663,-500.0,0.00016999,2]
[399941816,1766910640672,-509.30290094,0.00016999,2]
[399941817,1766910640682,-500.0,0.00016999,2]
[399941818,1766910640692,-500.0,0.00016999,2]
[399941819,1766910640701,-500.0,0.00016999,2]
[399941820,1766910640710,-500.0,0.00016999,2]
[399941821,1766910640719,-500.0,0.00016999,2]
[399941822,1766910640729,-500.0,0.00016999,2]
[399941823,1766910640742,-602.50518509,0.00016999,2]
[399941824,1766910640752,-483.08577501,0.00016999,2]
[399941825,1766910640763,-500.0,0.00016999,2]
[399941826,1766910640772,-500.0,0.00016999,2]
[399941827,1766910640785,-302.48201294,0.00016999,2]
[399941828,1766910640795,-516.75688834,0.00016999,2]
[399941829,1766910640805,-506.90698062,0.00016999,2]
[399941830,1766910640815,-500.0,0.00016999,2]
[399941831,1766910640824,-500.0,0.00016999,2]
[399941832,1766910640837,-500.0,0.00016999,2]
[399941833,1766910640846,-500.0,0.00016999,2]
[399941834,1766910640855,-500.0,0.00016999,2]
[399941835,1766910640864,-500.0,0.00016999,2]
[399941836,1766910640875,-500.0,0.00016999,2]
[399941837,1766910640886,-500.0,0.00016999,2]
[399941838,1766910640897,-500.0,0.00016999,2]
[399941839,1766910640908,-536.08075892,0.00016999,2]
[399941840,1766910640918,-277.91367706,0.00016999,2]
[399941841,1766910640938,-413.76435569,0.00016999,2]
[399941842,1766910640949,-1335345.44735178,0.00017,2]
[399941843,1766910640968,-8049.12050542,0.00017,2]
[399941844,1766910640980,-1188.74622491,0.00017,2]
[399941845,1766910640995,-1294.81404362,0.00017,2]
[399941846,1766910641006,-32344.88279711,0.00017,2]
[399941847,1766910641017,-5739.18585998,0.00017,2]
[399941848,1766910641029,-13723.7384882,0.00017,2]
[399941849,1766910641050,-8840.2,0.00017,2]
[399941850,1766910641235,-170.96,0.00014392,2]
[399941851,1766910641244,-170.96,0.00015591,2]
[399941852,1766910641254,-170.96,0.0001679,2]
[399941853,1766910641265,-3851.02178919,0.00017,2]
[399941854,1766910641279,-899386.24257982,0.00017,2]
[399941856,1766910643687,-500.0,0.00014504,2]
[399941857,1766910643698,-500.0,0.00014778,2]
[399941858,1766910643707,-301.18406247,0.00017,2]
[399941859,1766910643791,-646.09156156,0.00017,2]
[399941868,1766910765859,167.95,0.00012597,2]
[399941869,1766910798926,1000.0,0.00014,14]
[399941870,1766910928929,71000.0,0.00030137,120]
[399941884,1766911307664,445.0,0.00030137,120]
[399941886,1766911403807,5000.0,0.0003013,120]
[399941897,1766911561275,217.82,6.892e-05,2]
[399941898,1766911561385,217.82,7.255e-05,2]
[399941899,1766911561577,217.82,7.618e-05,2]
[399941900,1766911561780,217.82,7.981e-05,2]
[399941901,1766911561995,217.82,8.344e-05,2]
[399941902,1766911562222,217.82,8.706e-05,2]
[399941903,1766911562638,217.82,9.069e-05,2]
[399941904,1766911562856,217.82,9.432e-05,2]
[399941905,1766911563080,217.82,9.795e-05,2]
[399941906,1766911563275,217.82,0.00010157,2]
[399941907,1766911563469,217.82,0.0001052,2]
[399941908,1766911563701,217.82,0.00010883,2]
[399941909,1766911563913,217.82,0.00011246,2]
[399941910,1766911564113,217.82,0.00011608,2]
[399941911,1766911564317,217.82,0.00011971,2]
[399941912,1766911564517,217.82,0.00012334,2]
[399941913,1766911564716,217.82,0.00012697,2]
[399941914,1766911564912,217.82,0.00013059,2]
[399941937,1766911822877,-260.0,0.00013422,2]
[399941938,1766911822900,-250.0,0.00013422,2]
[399941939,1766911822927,-139.62030078,0.00013422,2]
[399941940,1766911827452,-78.19969922,0.00013422,2]
[399941941,1766911827475,-163.20270468,0.00013428,2]
[399941942,1766911831193,-3.45729532,0.00013428,2]
[399941943,1766911831215,-201.53875111,0.00013519,2]
[399941944,1766911831838,-48.46124889,0.00013519,2]
[399941945,1766911831848,-175.70407614,0.00013633,2]
[399941946,1766911831857,-166.66,0.00013711,2]
[399941947,1766911831867,-300.0,0.00013732,2]
[399941948,1766911831876,-1200.0,0.00013732,2]
[399941949,1766911831885,-260.0,0.00013732,2]
[399941950,1766911831895,-300.0,0.00013732,2]
[399941951,1766911831903,-217.82,0.00013785,2]
[399941952,1766911831913,-500.0,0.00013958,2]
[399941953,1766911831922,-166.66,0.00013994,2]
[399941954,1766911831932,-166.66,0.00014277,2]
[399941955,1766911831941,-175.70407613,0.0001439,2]
[399941956,1766911831953,-89.75186027,0.00014438,2]
[399941957,1766911831965,-61.24813973,0.00014438,2]
[399941958,1766911831974,-151.0,0.00014438,2]
[399941959,1766911831983,-270.70817201,0.00014438,2]
[399941960,1766911831993,-207.4,0.00014438,2]
[399941961,1766911832002,-151.0,0.00014438,2]
[399941962,1766911832011,-150.0,0.00014445,2]
[399941963,1766911832020,-2304.93161989,0.00014446,2]
[399941964,1766911832031,-324.27327818,0.00014446,2]
[399941965,1766911832041,-253.75974854,0.00014446,2]
[399941966,1766911832052,-865.01229626,0.00014446,2]
[399941967,1766911832063,-891.195,0.00014446,2]
[399941968,1766911832074,-2173.96547988,0.00014446,2]
[399941969,1766911832104,-1242.16060208,0.00014446,2]
[399941970,1766911832115,-3393.70197517,0.00014446,2]
[399941971,1766911832124,-500.0,0.00014505,2]
[399941972,1766911832133,-500.0,0.00014505,2]
[399941973,1766911832145,-302.48201294,0.00014505,2]
[399941974,1766911832154,-516.75688834,0.00014505,2]
[399941975,1766911832164,-506.90698062,0.00014505,2]
[399941976,1766911832181,-500.0,0.00014505,2]
[399941977,1766911832190,-536.08075892,0.00014505,2]
[399941978,1766911832198,-166.66,0.00014559,2]
[399941979,1766911832208,-7251.24,0.00014649,2]
[399941980,1766911832218,-970.37,0.00014686,2]
[399941981,1766911832227,-152.23372818,0.00014699,2]
[399941982,1766911832235,-150.0,0.00014699,2]
[399941983,1766911832244,-150.0,0.00014699,2]
[399941984,1766911832253,-500.0,0.00014699,2]
[399941985,1766911832262,-500.0,0.00014699,2]
[399941986,1766911832272,-500.0,0.00014699,2]
[399941987,1766911832281,-500.0,0.00014699,2]
[399941988,1766911832290,-150.0,0.00014726,2]
[399941989,1766911832299,-150.0,0.00014726,2]
[399941990,1766911832308,-500.0,0.00014726,2]
[399941991,1766911832317,-502.10115364,0.00014726,2]
[399941992,1766911832327,-553.3371393,0.00014726,2]
[399941993,1766911832337,-501.68454883,0.00014726,2]
[399941994,1766911832346,-500.0,0.00014754,2]
[399941995,1766911832355,-150.0,0.00014754,2]
[399941996,1766911832365,-150.0,0.00014754,2]
[399941997,1766911832376,-500.0,0.00014754,2]
[399941998,1766911832385,-250.0,0.00014764,2]
[399941999,1766911832396,-300.0,0.00014764,2]
[399942000,1766911832411,-419.89195242,0.00014764,2]
[399942001,1766911832421,-600.0,0.00014764,2]
[399942002,1766911832430,-721.70626962,0.00014764,2]
[399942003,1766911832439,-2500.0,0.00014764,2]
[399942004,1766911832450,-195.0,0.00014764,2]
[399942005,1766911832459,-600.0,0.00014764,2]
[399942006,1766911832469,-96.13302906,0.00014764,2]
[399942007,1766911837931,-503.86697094,0.00014764,2]
[399942008,1766911837942,-195.0,0.00014764,2]
[399942009,1766911837952,-300.0,0.00014764,2]
[399942010,1766911837962,-300.0,0.00014764,2]
[399942011,1766911837971,-300.0,0.00014764,2]
[399942012,1766911837980,-237.83643607,0.00014781,2]
[399942013,1766911837990,-150.0,0.00014781,2]
[399942014,1766911838000,-168.0,0.00014781,2]
[399942015,1766911838010,-150.0,0.00014809,2]
[399942016,1766911838021,-250.0,0.00014836,2]
[399942017,1766911838031,-166.66,0.00014842,2]
[399942018,1766911838041,-578.78537291,0.00014973,2]
[399942019,1766911838052,-500.51013306,0.00014973,2]
[399942020,1766911838062,-500.32327299,0.00014973,2]
[399942021,1766911838072,-599.98058356,0.00014973,2]
[399942022,1766911838082,-500.0,0.00014973,2]
[399942023,1766911838092,-500.0,0.00014973,2]
[399942024,1766911838101,-500.51324187,0.00014973,2]
[399942025,1766911838113,-500.0,0.00014973,2]
[399942026,1766911838122,-500.0,0.00014973,2]
[399942027,1766911838132,-500.0,0.00014973,2]
[399942028,1766911838142,-165.07212519,0.00014973,2]
[399942029,1766911838151,-501.38477218,0.00014973,2]
[399942030,1766911838160,-323.24745058,0.00014973,2]
[399942031,1766911838170,-500.0,0.00014973,2]
[399942032,1766911838180,-157.13520198,0.00014973,2]
[399942033,1766911838190,-500.14010989,0.00014973,2]
[399942034,1766911838200,-500.0,0.00014973,2]
[399942035,1766911838209,-500.0,0.00014973,2]
[399942036,1766911838219,-500.0,0.00014973,2]
[399942037,1766911838229,-500.0,0.00014973,2]
[399942038,1766911838239,-757.08,0.00014973,2]
[399942039,1766911838249,-500.0,0.00015028,2]
[399942040,1766911838264,-420.0,0.00015049,2]
[399942041,1766911838274,-175.70407613,0.00015147,2]
[399942042,1766911838284,-3039.20799054,0.0001521,2]
[399942043,1766911838293,-150.0,0.00015247,2]
[399942044,1766911838303,-150.0,0.00015247,2]
[399942045,1766911838313,-150.0,0.00015247,2]
[399942046,1766911838323,-244.86390051,0.00015247,2]
[399942047,1766911838333,-150.0,0.00015247,2]
[399942048,1766911838344,-757.08,0.00015247,2]
[399942049,1766911838357,-164.91531166,0.00015274,2]
[399942050,1766911838367,-200.0,0.00015274,2]
[399942051,1766911838377,-200.0,0.00015274,2]
[399942052,1766911838388,-150.0,0.00015274,2]
[399942053,1766911838399,-1901.4292,0.00015284,2]
[399942054,1766911838411,-150.0,0.00015288,2]
[399942055,1766911838420,-150.0,0.00015288,2]
[399942056,1766911838430,-150.0,0.00015288,2]
[399942057,1766911838440,-150.0,0.00015288,2]
[399942058,1766911838451,-150.0,0.00015288,2]
[399942059,1766911838460,-150.0,0.00015288,2]
[399942060,1766911838470,-150.0,0.00015288,2]
[399942061,1766911838482,-150.0,0.00015288,2]
[399942062,1766911838491,-150.0,0.00015288,2]
[399942063,1766911838503,-661.75,0.000153,3]
[399942064,1766911838512,-500.0,0.00015302,2]
[399942065,1766911838523,-150.0,0.00015302,2]
[399942066,1766911838533,-150.99,0.0001531,2]
[399942067,1766911838542,-4999.99,0.0001531,2]
[399942068,1766911838552,-4549.42,0.0001531,2]
[399942069,1766911838561,-499.99,0.0001531,2]
[399942070,1766911838570,-9999.99,0.0001531,2]
[399942071,1766911838580,-299.99,0.0001531,2]
[399942072,1766911838589,-1195.59,0.0001531,2]
[399942073,1766911838598,-9999.99,0.0001531,2]
[399942074,1766911838607,-168.45,0.0001531,2]
[399942075,1766911838617,-150.99,0.0001531,2]
[399942076,1766911838627,-1532.02,0.0001531,2]
[399942077,1766911838636,-999.99,0.0001531,2]
[399942078,1766911838646,-9226.16,0.0001531,2]
[399942079,1766911838655,-85856.99,0.0001531,2]
[399942080,1766911838664,-425.4,0.0001531,2]
[399942081,1766911838674,-150.0,0.00015329,2]
[399942082,1766911838684,-403.79,0.00015352,2]
[399942083,1766911838693,-150.0,0.00015357,2]
[399942084,1766911838703,-250.0,0.00015384,2]
[399942085,1766911838712,-3039.20799045,0.00015398,2]
[399942086,1766911838722,-500.0,0.00015521,2]
[399942087,1766911838731,-439.3417286,0.00015521,2]
[399942088,1766911838741,-500.0,0.00015521,2]
[399942089,1766911838751,-1000.0,0.00015521,2]
[399942090,1766911838760,-921.98541227,0.00015521,2]
[399942091,1766911838770,-1079.51075165,0.00015521,2]
[399942092,1766911838779,-757.08,0.00015521,2]
[399942093,1766911838788,-152.95414215,0.00015555,2]
[399942094,1766911838799,-150.0,0.00015571,2]
[399942095,1766911838808,-255.0,0.00015572,2]
[399942096,1766911838817,-151.0,0.00015576,2]
[399942097,1766911838827,-151.0,0.00015576,2]
[399942098,1766911838836,-151.0,0.00015581,2]
[399942099,1766911838845,-151.0,0.00015581,2]
[399942100,1766911838855,-151.0,0.00015583,2]
[399942101,1766911838864,-151.0,0.00015583,2]
[399942102,1766911838874,-3039.20799045,0.00015586,2]
[399942103,1766911838884,-151.0,0.00015594,2]
[399942104,1766911838894,-151.0,0.00015594,2]
[399942105,1766911838903,-500.0,0.00015645,2]
[399942106,1766911838913,-500.0,0.00015645,2]
[399942107,1766911838923,-281.36696871,0.00015645,2]
[399942108,1766911838932,-500.0,0.00015645,2]
[399942109,1766911838942,-500.0,0.00015645,2]
[399942110,1766911838951,-500.0,0.00015645,2]
[399942111,1766911838961,-500.0,0.00015645,2]
[399942112,1766911838971,-500.0,0.00015645,2]
[399942113,1766911838980,-500.0,0.00015645,2]
[399942114,1766911838989,-170.831243,0.00015645,2]
[399942115,1766911838999,-500.0,0.00015645,2]
[399942116,1766911839009,-500.0,0.00015645,2]
[399942117,1766911839019,-500.0,0.00015645,2]
[399942118,1766911839029,-500.0,0.00015645,2]
[399942119,1766911839038,-500.0,0.00015645,2]
[399942120,1766911839048,-500.0,0.00015645,2]
[399942121,1766911839057,-500.0,0.00015645,2]
[399942122,1766911839067,-500.0,0.00015645,2]
[399942123,1766911839076,-500.0,0.00015645,2]
[399942124,1766911839086,-500.0,0.00015645,2]
[399942125,1766911839095,-500.0,0.00015645,2]
[399942126,1766911839105,-500.0,0.00015645,2]
[399942127,1766911839115,-500.0,0.00015645,2]
[399942128,1766911839125,-500.0,0.00015645,2]
[399942129,1766911839134,-500.0,0.00015645,2]
[399942130,1766911839143,-500.0,0.00015645,2]
[399942131,1766911839152,-500.0,0.00015645,2]
[399942132,1766911839162,-500.0,0.00015645,2]
[399942133,1766911839171,-500.0,0.00015645,2]
[399942134,1766911839180,-500.0,0.00015645,2]
[399942135,1766911839189,-500.0,0.00015645,2]
[399942136,1766911839199,-500.0,0.00015645,2]
[399942137,1766911839208,-500.0,0.00015645,2]
[399942138,1766911839217,-500.0,0.00015645,2]
[399942139,1766911839226,-500.0,0.00015645,2]
[399942140,1766911839235,-500.0,0.00015645,2]
[399942141,1766911839245,-500.0,0.00015645,2]
[399942142,1766911839257,-500.0,0.00015645,2]
[399942143,1766911839267,-500.0,0.00015645,2]
[399942144,1766911839276,-500.0,0.00015645,2]
[399942145,1766911839286,-500.0,0.00015645,2]
[399942146,1766911839295,-500.0,0.00015645,2]
[399942147,1766911839304,-500.0,0.00015645,2]
[399942148,1766911839313,-500.0,0.00015645,2]
[399942149,1766911839323,-500.0,0.00015645,2]
[399942150,1766911839332,-500.0,0.00015645,2]
[399942151,1766911839341,-500.0,0.00015645,2]
[399942152,1766911839351,-500.0,0.00015645,2]
[399942153,1766911839360,-500.0,0.00015645,2]
[399942154,1766911839370,-500.0,0.00015645,2]
[399942155,1766911839378,-500.0,0.00015645,2]
[399942156,1766911839388,-500.0,0.00015645,2]
[399942157,1766911839397,-500.0,0.00015645,2]
[399942158,1766911839411,-500.0,0.00015645,2]
[399942159,1766911839420,-500.0,0.00015645,2]
[399942160,1766911839429,-500.0,0.00015645,2]
[399942161,1766911839438,-500.0,0.00015645,2]
[399942162,1766911839448,-201.35379074,0.00015645,2]
[399942163,1766911839457,-500.0,0.00015645,2]
[399942164,1766911839466,-25555.4614,0.00015646,2]
[399942165,1766911839475,-173.12928314,0.00015673,2]
[399942166,1766911839484,-3442.44367729,0.00015673,2]
[399942167,1766911839493,-248.57012523,0.00015677,2]
[399942168,1766911839503,-500.0,0.00015744,2]
[399942169,1766911839512,-500.0,0.00015744,2]
[399942170,1766911839523,-247.45816492,0.00015745,2]
[399942171,1766911839534,-474.97365461,0.00015745,2]
[399942172,1766911839545,-500.0,0.00015745,2]
[399942173,1766911839554,-337.23529797,0.00015745,2]
[399942174,1766911839564,-500.0,0.00015745,2]
[399942175,1766911839574,-500.0,0.00015745,2]
[399942176,1766911839585,-500.0,0.00015745,2]
[399942177,1766911839596,-500.0,0.00015745,2]
[399942178,1766911839606,-483.08577501,0.00015745,2]
[399942179,1766911839618,-500.0,0.00015745,2]
[399942180,1766911839629,-509.30290094,0.00015745,2]
[399942181,1766911839638,-500.0,0.00015745,2]
[399942182,1766911839649,-500.0,0.00015745,2]
[399942183,1766911839659,-500.0,0.00015745,2]
[399942184,1766911839669,-500.0,0.00015745,2]
[399942185,1766911839678,-1000000.0,0.00015746,2]
[399942186,1766911839687,-3039.20799045,0.00015773,2]
[399942187,1766911839698,-757.08,0.00015795,2]
[399942188,1766911839709,-3442.44367723,0.00015809,2]
[399942189,1766911839719,-150.0,0.00015854,2]
[399942190,1766911839729,-248.57012522,0.00015881,2]
[399942191,1766911839739,-173.12928314,0.00015918,2]
[399942192,1766911839750,-3442.44367723,0.00015946,2]
[399942193,1766911839760,-3039.20799045,0.00015961,2]
[399942194,1766911839770,-757.08,0.00016068,2]
[399942195,1766911839780,-465.30149586,0.00016068,2]
[399942196,1766911839790,-3442.44367723,0.00016082,2]
[399942197,1766911839800,-248.57012522,0.00016085,2]
[399942198,1766911839810,-150.0,0.00016137,2]
[399942199,1766911839821,-150.0,0.00016137,2]
[399942200,1766911839831,-150.0,0.00016137,2]
[399942201,1766911839843,-150.0,0.00016137,2]
[399942202,1766911839854,-3039.20799045,0.00016149,2]
[399942203,1766911839864,-170.0,0.00016153,2]
[399942204,1766911839875,-173.12928314,0.00016164,2]
[399942205,1766911839884,-170.0,0.00016206,2]
[399942206,1766911839893,-170.0,0.00016209,2]
[399942207,1766911839904,-3442.44367723,0.00016218,2]
[399942208,1766911839915,-248.57012522,0.00016289,2]
[399942209,1766911839926,-3039.20799045,0.00016337,2]
[399942210,1766911839936,-757.08,0.00016342,2]
[399942211,1766911839947,-3442.44367723,0.00016355,2]
[399942212,1766911839956,-173.12928314,0.00016409,2]
[399942213,1766911839967,-150.0,0.0001642,2]
[399942214,1766911839978,-170.0,0.00016428,2]
[399942215,1766911839988,-500.0,0.00016438,2]
[399942216,1766911839997,-500.0,0.00016438,2]
[399942217,1766911840007,-500.0,0.00016438,2]
[399942219,1766911840016,-168.1010981,0.00016438,2]
[399942221,1766911840027,-500.0,0.00016438,2]
[399942223,1766911840038,-500.0,0.00016438,2]
[399942225,1766911840047,-500.0,0.00016438,2]
[399942227,1766911840057,-500.0,0.00016438,2]
[399942229,1766911840067,-500.0,0.00016438,2]
[399942231,1766911840081,-500.0,0.00016438,2]
[399942232,1766911840091,-500.0,0.00016438,2]
[399942233,1766911840101,-500.0,0.00016438,2]
[399942234,1766911840110,-500.0,0.00016438,2]
[399942235,1766911840120,-500.0,0.00016438,2]
[399942236,1766911840129,-500.0,0.00016438,2]
[399942237,1766911840139,-500.0,0.00016438,2]
[399942238,1766911840149,-500.0,0.00016438,2]
[399942239,1766911840159,-254.05773661,0.00016482,2]
[399942240,1766911840169,-587.0,0.00016491,2]
[399942241,1766911840179,-3442.44367723,0.00016491,2]
[399942242,1766911840188,-248.57012522,0.00016492,2]
[399942243,1766911840199,-508.11547322,0.00016493,2]
[399942244,1766911840208,-3039.20799045,0.00016524,2]
[399942245,1766911840220,-757.08,0.00016616,2]
[399942246,1766911840230,-3442.44367723,0.00016627,2]
[399942247,1766911840240,-173.12928314,0.00016655,2]
[399942248,1766911840249,-248.57012522,0.00016696,2]
[399942249,1766911840258,-150.0,0.00016703,2]
[399942250,1766911840268,-3039.20799045,0.00016712,2]
[399942251,1766911840277,-250.0,0.00016739,2]
[399942252,1766911840286,-3442.44367723,0.00016764,2]
[399942253,1766911840295,-433.0,0.00016785,2]
[399942254,1766911840305,-200.0,0.00016864,2]
[399942255,1766911840314,-170.0,0.00016889,2]
[399942256,1766911840324,-757.08,0.0001689,2]
[399942257,1766911840333,-25000.0,0.00016891,3]
[399942258,1766911840352,-500.0,0.00016899,2]
[399942259,1766911840367,-500.0,0.00016899,2]
[399942260,1766911840376,-25000.0,0.000169,3]
[399942261,1766911840386,-25000.0,0.000169,3]
[399942262,1766911840395,-248.57012522,0.000169,2]
[399942263,1766911840407,-317.93682048,0.000169,2]
[399942264,1766911840416,-25000.0,0.000169,3]
[399942265,1766911840425,-396.10010332,0.000169,2]
[399942266,1766911840434,-508.81786266,0.000169,2]
[399942267,1766911840445,-3039.20799045,0.000169,2]
[399942268,1766911840454,-173.12928314,0.000169,2]
[399942269,1766911840462,-1871.35742932,0.000169,2]
[399942270,1766911840472,-3442.44367723,0.000169,2]
[399942271,1766911840482,-1962.36427914,0.000169,2]
[399942275,1766911840659,-4806.0,0.000169,2]
[399942276,1766911840670,-424.20807152,0.00016973,2]
[399942277,1766911840679,-481.0497289,0.00016973,2]
[399942278,1766911840690,-500.0,0.00016973,2]
[399942279,1766911840701,-500.0,0.00016973,2]
[399942280,1766911840710,-500.0,0.00016973,2]
[399942281,1766911840721,-500.0,0.00016973,2]
[399942282,1766911840732,-500.0,0.00016973,2]